[Event "*** Titled Tuesday Blitz"]
[Site "Chess.com"]
[Date "2020.04.14"]
[Round "8"]
[White "Mikhail_Golubev"]
[Black "AlexOstrovskiy"]
[Result "1/2-1/2"]
[WhiteElo "2531"]
[BlackElo "2652"]
[TimeControl "180+1"]
[EndTime "11:29:47 PDT"]
[Termination "Game drawn by repetition"]

1. e4 {[%clk 0:03:00.9]} 1... c6 {[%clk 0:02:57.8]} 2. d4 {[%clk 0:02:59.9]}
2... d5 {[%clk 0:02:58.7]} 3. Nc3 {[%clk 0:02:59.9]} 3... dxe4 {[%clk
0:02:57.5]} 4. Nxe4 {[%clk 0:02:59.8]} 4... Bf5 {[%clk 0:02:57.9]} 5. Ng3 {[%clk
0:02:58]} 5... Bg6 {[%clk 0:02:57.9]} 6. c3 {[%clk 0:02:58.2]} 6... e6 {[%clk
0:02:47.2]} 7. Nh3 {[%clk 0:02:57.1]} 7... Nf6 {[%clk 0:02:43]} 8. Nf4 {[%clk
0:02:52.8]} 8... Qc7 {[%clk 0:02:42.2]} 9. h4 {[%clk 0:02:50.2]} 9... Bd6 {[%clk
0:02:41.3]} 10. Qf3 {[%clk 0:02:45.2]} 10... Nbd7 {[%clk 0:02:29.4]} 11. h5
{[%clk 0:02:44]} 11... Bc2 {[%clk 0:02:30.1]} 12. h6 {[%clk 0:02:43.9]} 12... g6
{[%clk 0:02:30.7]} 13. Bd3 {[%clk 0:02:43.8]} 13... Bxd3 {[%clk 0:02:28.3]} 14.
Nxd3 {[%clk 0:02:43.8]} 14... Qa5 {[%clk 0:02:08.3]} 15. O-O {[%clk 0:02:25.3]}
15... Qd5 {[%clk 0:02:00.3]} 16. Qe2 {[%clk 0:02:17.6]} 16... O-O-O {[%clk
0:01:48.2]} 17. Nf4 {[%clk 0:02:12.3]} 17... Bxf4 {[%clk 0:01:41.2]} 18. Bxf4
{[%clk 0:02:12]} 18... g5 {[%clk 0:01:41.8]} 19. Be5 {[%clk 0:02:03.7]} 19...
Rhg8 {[%clk 0:01:28.8]} 20. c4 {[%clk 0:01:58.3]} 20... Qa5 {[%clk 0:01:28.7]}
21. Bd6 {[%clk 0:01:51]} 21... Rg6 {[%clk 0:01:24.4]} 22. b4 {[%clk 0:01:48.1]}
22... Qa4 {[%clk 0:01:22]} 23. b5 {[%clk 0:01:38.8]} 23... Rxh6 {[%clk
0:01:17.3]} 24. Rab1 {[%clk 0:01:37.4]} 24... Nb6 {[%clk 0:01:04.8]} 25. Be7
{[%clk 0:00:52.8]} 25... Rd7 {[%clk 0:01:01.5]} 26. Rb4 {[%clk 0:00:28.3]} 26...
Qa5 {[%clk 0:00:52.8]} 27. Bf8 {[%clk 0:00:28.1]} 27... Rg6 {[%clk 0:00:51.4]}
28. bxc6 {[%clk 0:00:27.5]} 28... bxc6 {[%clk 0:00:52.3]} 29. Rfb1 {[%clk
0:00:23.8]} 29... Rxd4 {[%clk 0:00:42.3]} 30. Qf3 {[%clk 0:00:19.9]} 30... Kd7
{[%clk 0:00:23.9]} 31. Nh5 {[%clk 0:00:19.3]} 31... Nxh5 {[%clk 0:00:18.2]} 32.
Qxf7+ {[%clk 0:00:19.1]} 32... Kc8 {[%clk 0:00:17.9]} 33. Qe8+ {[%clk
0:00:16.2]} 33... Kb7 {[%clk 0:00:12]} 34. Qe7+ {[%clk 0:00:14.6]} 34... Kc8
{[%clk 0:00:08.8]} 35. Qe8+ {[%clk 0:00:14]} 35... Kb7 {[%clk 0:00:09.1]} 36.
Qe7+ {[%clk 0:00:12.9]} 36... Kc8 {[%clk 0:00:05.5]} 37. Qe8+ {[%clk 0:00:06.4]}
1/2-1/2

[Event "*** Titled Tuesday Blitz"]
[Site "Chess.com"]
[Date "2020.04.14"]
[Round "8"]
[White "profofchess"]
[Black "GM4life"]
[Result "0-1"]
[WhiteElo "2386"]
[BlackElo "2206"]
[TimeControl "180+1"]
[EndTime "11:29:48 PDT"]
[Termination "GM4life won by resignation"]

1. e4 {[%clk 0:03:00.9]} 1... c5 {[%clk 0:02:57.9]} 2. Nf3 {[%clk 0:03:00.7]}
2... d6 {[%clk 0:02:58.3]} 3. c3 {[%clk 0:03:00.4]} 3... Nf6 {[%clk 0:02:58.5]}
4. Bc4 {[%clk 0:02:59.3]} 4... Nc6 {[%clk 0:02:43.4]} 5. Qe2 {[%clk 0:02:58.6]}
5... e6 {[%clk 0:02:37.4]} 6. Bb3 {[%clk 0:02:57.8]} 6... Be7 {[%clk 0:02:37.7]}
7. d4 {[%clk 0:02:57.4]} 7... O-O {[%clk 0:02:38.6]} 8. O-O {[%clk 0:02:41.8]}
8... cxd4 {[%clk 0:02:17.3]} 9. cxd4 {[%clk 0:02:40.8]} 9... d5 {[%clk
0:02:17.5]} 10. e5 {[%clk 0:02:38.5]} 10... Ne4 {[%clk 0:02:14.6]} 11. Nc3
{[%clk 0:02:38.3]} 11... Nxc3 {[%clk 0:02:13.8]} 12. bxc3 {[%clk 0:02:39.2]}
12... Na5 {[%clk 0:02:13.2]} 13. Bc2 {[%clk 0:02:38.2]} 13... Bd7 {[%clk
0:02:01.1]} 14. Qd3 {[%clk 0:02:33.4]} 14... g6 {[%clk 0:02:00.6]} 15. Bh6
{[%clk 0:02:31.8]} 15... Re8 {[%clk 0:01:59.9]} 16. g3 {[%clk 0:01:50.9]} 16...
a6 {[%clk 0:01:56]} 17. a4 {[%clk 0:01:44.1]} 17... b5 {[%clk 0:01:55.4]} 18. h4
{[%clk 0:01:37.4]} 18... Qc7 {[%clk 0:01:41.2]} 19. h5 {[%clk 0:00:40.9]} 19...
Qc4 {[%clk 0:01:36]} 20. hxg6 {[%clk 0:00:35]} 20... hxg6 {[%clk 0:01:35.3]} 21.
Qe3 {[%clk 0:00:31.1]} 21... Nb3 {[%clk 0:01:15.3]} 22. Rad1 {[%clk 0:00:23.5]}
22... Rac8 {[%clk 0:01:12]} 23. Qf4 {[%clk 0:00:21.7]} 23... Qxc3 {[%clk
0:00:40]} 24. Bxb3 {[%clk 0:00:14.6]} 24... Qxb3 {[%clk 0:00:39]} 25. Ng5 {[%clk
0:00:14.8]} 25... Rf8 {[%clk 0:00:38.9]} 26. Bxf8 {[%clk 0:00:13.5]} 26... Rxf8
{[%clk 0:00:39.7]} 27. Qh4 {[%clk 0:00:13]} 27... Bxg5 {[%clk 0:00:40.1]} 28.
Qxg5 {[%clk 0:00:13.8]} 28... bxa4 {[%clk 0:00:38.3]} 29. Kg2 {[%clk 0:00:14.1]}
29... Qc2 {[%clk 0:00:23.6]} 30. Rh1 {[%clk 0:00:13.4]} 30... Qe4+ {[%clk
0:00:20.9]} 31. Kg1 {[%clk 0:00:12.9]} 31... Qe2 {[%clk 0:00:13.7]} 32. Rf1
{[%clk 0:00:11.6]} 32... Bb5 {[%clk 0:00:11.3]} 33. Kg2 {[%clk 0:00:11.6]} 33...
Qxf1+ {[%clk 0:00:10.6]} 34. Rxf1 {[%clk 0:00:11.6]} 34... Bxf1+ {[%clk
0:00:11.5]} 35. Kxf1 {[%clk 0:00:11.9]} 35... Rb8 {[%clk 0:00:12.1]} 36. Qe3
{[%clk 0:00:08.8]} 36... Rb3 {[%clk 0:00:12.6]} 37. Qg5 {[%clk 0:00:07]} 37...
a3 {[%clk 0:00:12.5]} 38. Qd8+ {[%clk 0:00:06.9]} 38... Kg7 {[%clk 0:00:13]} 39.
Qa5 {[%clk 0:00:07]} 39... Rd3 {[%clk 0:00:11.7]} 40. Qxa3 {[%clk 0:00:05.8]}
40... Rxa3 {[%clk 0:00:11.3]} 0-1

[Event "*** Titled Tuesday Blitz"]
[Site "Chess.com"]
[Date "2020.04.14"]
[Round "8"]
[White "ReyesBraulio"]
[Black "JesseFebruary"]
[Result "1-0"]
[WhiteElo "2165"]
[BlackElo "1765"]
[TimeControl "180+1"]
[EndTime "11:29:48 PDT"]
[Termination "ReyesBraulio won on time"]

1. d4 {[%clk 0:03:00.9]} 1... Nf6 {[%clk 0:02:24]} 2. f4 {[%clk 0:02:59.2]} 2...
e6 {[%clk 0:02:23.5]} 3. Nf3 {[%clk 0:02:58.6]} 3... b6 {[%clk 0:02:23.8]} 4. e3
{[%clk 0:02:58.6]} 4... Be7 {[%clk 0:02:24.2]} 5. Be2 {[%clk 0:02:58.6]} 5...
Bb7 {[%clk 0:02:24.8]} 6. O-O {[%clk 0:02:59.1]} 6... O-O {[%clk 0:02:24.8]} 7.
c3 {[%clk 0:02:59.5]} 7... d6 {[%clk 0:02:24.6]} 8. Nbd2 {[%clk 0:02:59.9]} 8...
c5 {[%clk 0:02:23.8]} 9. Qb3 {[%clk 0:02:59.3]} 9... Nbd7 {[%clk 0:02:06.3]} 10.
Ng5 {[%clk 0:02:58.1]} 10... h6 {[%clk 0:02:02]} 11. Bf3 {[%clk 0:02:56.6]}
11... Ba6 {[%clk 0:01:56.5]} 12. Nh3 {[%clk 0:02:34.8]} 12... Bxf1 {[%clk
0:01:52.4]} 13. Bxa8 {[%clk 0:02:34.5]} 13... Qxa8 {[%clk 0:01:49.6]} 14. Nxf1
{[%clk 0:02:31.9]} 14... e5 {[%clk 0:01:48]} 15. dxe5 {[%clk 0:02:22.1]} 15...
dxe5 {[%clk 0:01:48.9]} 16. Bd2 {[%clk 0:02:20.7]} 16... Rc8 {[%clk 0:01:40.8]}
17. Be1 {[%clk 0:02:19.9]} 17... c4 {[%clk 0:01:37.3]} 18. Qc2 {[%clk
0:02:18.3]} 18... Bc5 {[%clk 0:01:31.8]} 19. Bf2 {[%clk 0:02:11.5]} 19... Ne4
{[%clk 0:01:26.7]} 20. Rd1 {[%clk 0:02:04.6]} 20... Nxf2 {[%clk 0:01:16.6]} 21.
Nxf2 {[%clk 0:02:00.6]} 21... Qc6 {[%clk 0:01:16]} 22. Qd2 {[%clk 0:01:50.4]}
22... exf4 {[%clk 0:00:55.3]} 23. exf4 {[%clk 0:01:23.3]} 23... Nf6 {[%clk
0:00:43.6]} 24. Kh1 {[%clk 0:01:04.8]} 24... Re8 {[%clk 0:00:32.7]} 25. h3
{[%clk 0:01:00.2]} 25... Qe6 {[%clk 0:00:12.9]} 26. Ng3 {[%clk 0:00:37.7]} 26...
Bxf2 {[%clk 0:00:10.7]} 27. Qxf2 {[%clk 0:00:35.2]} 27... Ne4 {[%clk 0:00:11.3]}
28. Nxe4 {[%clk 0:00:33.6]} 28... Qxe4 {[%clk 0:00:12.2]} 29. Rd4 {[%clk
0:00:27.8]} 29... Qe2 {[%clk 0:00:10.5]} 30. Kg1 {[%clk 0:00:23.5]} 30... Qe7
{[%clk 0:00:07.9]} 31. Rxc4 {[%clk 0:00:20.5]} 31... b5 {[%clk 0:00:06.6]} 32.
Rd4 {[%clk 0:00:20.4]} 32... a5 {[%clk 0:00:05.8]} 33. a3 {[%clk 0:00:19.8]}
33... Kh7 {[%clk 0:00:02.3]} 34. f5 {[%clk 0:00:20]} 34... g6 {[%clk 0:00:01.3]}
35. fxg6+ {[%clk 0:00:17.8]} 35... fxg6 {[%clk 0:00:02.2]} 36. Rf4 {[%clk
0:00:17.5]} 1-0

[Event "*** Titled Tuesday Blitz"]
[Site "Chess.com"]
[Date "2020.04.14"]
[Round "8"]
[White "IngOscarArdila"]
[Black "Playgood28"]
[Result "0-1"]
[WhiteElo "2084"]
[BlackElo "2154"]
[TimeControl "180+1"]
[EndTime "11:29:48 PDT"]
[Termination "Playgood28 won by resignation"]

1. d4 {[%clk 0:03:00.9]} 1... f5 {[%clk 0:02:57.8]} 2. g3 {[%clk 0:02:58]} 2...
Nf6 {[%clk 0:02:54.7]} 3. Bg2 {[%clk 0:02:57.7]} 3... g6 {[%clk 0:02:54.6]} 4.
Nf3 {[%clk 0:02:57.3]} 4... d6 {[%clk 0:02:54.3]} 5. O-O {[%clk 0:02:56.6]} 5...
Bg7 {[%clk 0:02:54.8]} 6. c4 {[%clk 0:02:56.1]} 6... O-O {[%clk 0:02:55.2]} 7.
Nc3 {[%clk 0:02:55.1]} 7... c6 {[%clk 0:02:55.5]} 8. b3 {[%clk 0:02:53.9]} 8...
Qc7 {[%clk 0:02:53]} 9. Bb2 {[%clk 0:02:53.2]} 9... e5 {[%clk 0:02:50.9]} 10.
dxe5 {[%clk 0:02:27.7]} 10... dxe5 {[%clk 0:02:49.7]} 11. Na4 {[%clk 0:02:19.7]}
11... e4 {[%clk 0:02:46.2]} 12. Be5 {[%clk 0:02:12.2]} 12... Qa5 {[%clk
0:02:26.8]} 13. Ng5 {[%clk 0:01:59.8]} 13... Qxe5 {[%clk 0:02:23.7]} 14. h4
{[%clk 0:01:54.1]} 14... Ng4 {[%clk 0:02:17.3]} 15. Rc1 {[%clk 0:01:50.1]} 15...
e3 {[%clk 0:02:07.9]} 16. f4 {[%clk 0:01:46.1]} 16... Qe7 {[%clk 0:02:03.9]} 17.
Qc2 {[%clk 0:01:42.4]} 17... h6 {[%clk 0:02:02.2]} 18. Nf3 {[%clk 0:01:41.4]}
18... Na6 {[%clk 0:02:01.5]} 19. a3 {[%clk 0:01:40.2]} 19... Be6 {[%clk
0:01:58.2]} 20. Rcd1 {[%clk 0:01:38.4]} 20... Rad8 {[%clk 0:01:56.4]} 21. b4
{[%clk 0:01:37.6]} 21... Qf7 {[%clk 0:01:53]} 22. Rc1 {[%clk 0:01:26.5]} 22...
b5 {[%clk 0:01:44.9]} 23. Nc5 {[%clk 0:01:21.7]} 23... Nxc5 {[%clk 0:01:43.5]}
24. bxc5 {[%clk 0:01:21.7]} 24... Bxc4 {[%clk 0:01:43.1]} 25. a4 {[%clk
0:01:16.6]} 25... a6 {[%clk 0:01:41.2]} 26. axb5 {[%clk 0:01:16.2]} 26... axb5
{[%clk 0:01:40.8]} 27. Rfd1 {[%clk 0:01:11.3]} 27... Qe7 {[%clk 0:01:38.4]} 28.
h5 {[%clk 0:01:04.5]} 28... g5 {[%clk 0:01:24.9]} 29. Rxd8 {[%clk 0:01:00.8]}
29... Qxd8 {[%clk 0:01:22.1]} 30. Rd1 {[%clk 0:00:59.6]} 30... Qe7 {[%clk
0:01:20.7]} 31. Rd6 {[%clk 0:00:59]} 31... gxf4 {[%clk 0:01:16.9]} 32. gxf4
{[%clk 0:00:54.5]} 32... Rd8 {[%clk 0:01:13.6]} 33. Qxf5 {[%clk 0:00:48.8]}
33... Nf6 {[%clk 0:01:08.7]} 34. Rxc6 {[%clk 0:00:32.3]} 34... Bxe2 {[%clk
0:01:04.2]} 35. Ne5 {[%clk 0:00:30.5]} 35... Bxh5 {[%clk 0:01:00.4]} 36. Re6
{[%clk 0:00:19]} 36... Qf8 {[%clk 0:00:51.1]} 37. Rd6 {[%clk 0:00:08.6]} 37...
e2 {[%clk 0:00:48.6]} 38. Kf2 {[%clk 0:00:05.3]} 38... Rxd6 {[%clk 0:00:46.2]}
39. cxd6 {[%clk 0:00:04.8]} 39... Qxd6 {[%clk 0:00:45.7]} 40. Qc8+ {[%clk
0:00:04.8]} 40... Bf8 {[%clk 0:00:37.1]} 41. Qc2 {[%clk 0:00:03.5]} 41... Qd4+
{[%clk 0:00:34.6]} 42. Ke1 {[%clk 0:00:02.9]} 42... Qg1+ {[%clk 0:00:33.2]} 43.
Kd2 {[%clk 0:00:03.1]} 43... e1=Q+ {[%clk 0:00:31.6]} 0-1

[Event "*** Titled Tuesday Blitz"]
[Site "Chess.com"]
[Date "2020.04.14"]
[Round "8"]
[White "LileKoridze"]
[Black "Borsuk_Konstantin"]
[Result "0-1"]
[WhiteElo "2292"]
[BlackElo "2490"]
[TimeControl "180+1"]
[EndTime "11:29:50 PDT"]
[Termination "Borsuk_Konstantin won by resignation"]

1. d4 {[%clk 0:03:00.7]} 1... Nf6 {[%clk 0:02:59.6]} 2. c4 {[%clk 0:03:00.9]}
2... e6 {[%clk 0:03:00.1]} 3. g3 {[%clk 0:03:00]} 3... Bb4+ {[%clk 0:02:54.5]}
4. Bd2 {[%clk 0:02:58.8]} 4... c5 {[%clk 0:02:54.4]} 5. Bg2 {[%clk 0:02:53.3]}
5... O-O {[%clk 0:02:53.8]} 6. Bxb4 {[%clk 0:02:51.9]} 6... cxb4 {[%clk
0:02:53.3]} 7. Nf3 {[%clk 0:02:52.3]} 7... a5 {[%clk 0:02:49.7]} 8. O-O {[%clk
0:02:51.6]} 8... d6 {[%clk 0:02:41.5]} 9. Nbd2 {[%clk 0:02:48.2]} 9... Na6
{[%clk 0:02:40.4]} 10. e4 {[%clk 0:02:47.3]} 10... Nd7 {[%clk 0:02:36.9]} 11.
Qe2 {[%clk 0:02:42.2]} 11... e5 {[%clk 0:02:36]} 12. b3 {[%clk 0:02:40.5]} 12...
b6 {[%clk 0:02:29.1]} 13. Rad1 {[%clk 0:02:38.8]} 13... Qe7 {[%clk 0:02:24.6]}
14. dxe5 {[%clk 0:02:38.3]} 14... dxe5 {[%clk 0:02:23.6]} 15. Rfe1 {[%clk
0:02:35.1]} 15... Nac5 {[%clk 0:02:22.1]} 16. Nf1 {[%clk 0:02:35]} 16... a4
{[%clk 0:02:18.9]} 17. Ne3 {[%clk 0:02:28]} 17... Bb7 {[%clk 0:02:01.6]} 18. Nd5
{[%clk 0:02:24.6]} 18... Bxd5 {[%clk 0:01:59.9]} 19. exd5 {[%clk 0:02:24.2]}
19... Qd6 {[%clk 0:01:47.4]} 20. Qc2 {[%clk 0:01:58.7]} 20... axb3 {[%clk
0:01:41.1]} 21. axb3 {[%clk 0:01:58.6]} 21... Ra3 {[%clk 0:01:37]} 22. Re3
{[%clk 0:01:50.9]} 22... Rfa8 {[%clk 0:01:30.7]} 23. Rde1 {[%clk 0:01:40.6]}
23... Ra2 {[%clk 0:01:26.5]} 24. Qf5 {[%clk 0:01:35.3]} 24... g6 {[%clk
0:01:24]} 25. Qh3 {[%clk 0:01:35.2]} 25... f6 {[%clk 0:01:18.3]} 26. Nh4 {[%clk
0:01:31.2]} 26... Ra1 {[%clk 0:01:03.9]} 27. Qg4 {[%clk 0:01:19.7]} 27... Kf7
{[%clk 0:01:01]} 28. Rxa1 {[%clk 0:01:00.6]} 28... Rxa1+ {[%clk 0:00:59.9]} 29.
Bf1 {[%clk 0:01:00.9]} 29... e4 {[%clk 0:00:53.5]} 30. Qe2 {[%clk 0:00:48.8]}
30... f5 {[%clk 0:00:47.8]} 31. f3 {[%clk 0:00:47.2]} 31... Ne5 {[%clk
0:00:43.8]} 32. fxe4 {[%clk 0:00:47.2]} 32... Nxe4 {[%clk 0:00:43.6]} 33. Rxe4
{[%clk 0:00:44.9]} 33... fxe4 {[%clk 0:00:43]} 34. Qxe4 {[%clk 0:00:45.2]} 34...
Qf6 {[%clk 0:00:41.5]} 35. Qe2 {[%clk 0:00:41.7]} 35... g5 {[%clk 0:00:29.1]}
36. Ng2 {[%clk 0:00:24.6]} 36... Nf3+ {[%clk 0:00:28.7]} 37. Kh1 {[%clk
0:00:22.9]} 37... Nd2 {[%clk 0:00:26.2]} 38. Ne3 {[%clk 0:00:13.4]} 38... Rxf1+
{[%clk 0:00:19.7]} 39. Nxf1 {[%clk 0:00:11.2]} 39... Qxf1+ {[%clk 0:00:18.2]}
40. Qxf1+ {[%clk 0:00:11.2]} 40... Nxf1 {[%clk 0:00:19.1]} 41. Kg2 {[%clk
0:00:11.7]} 41... Nd2 {[%clk 0:00:19.7]} 0-1

[Event "*** Titled Tuesday Blitz"]
[Site "Chess.com"]
[Date "2020.04.14"]
[Round "8"]
[White "fmshawnrl123"]
[Black "YQPerez"]
[Result "0-1"]
[WhiteElo "2770"]
[BlackElo "2978"]
[TimeControl "180+1"]
[EndTime "11:29:51 PDT"]
[Termination "YQPerez won on time"]

1. c4 {[%clk 0:03:00.9]} 1... e5 {[%clk 0:02:59.2]} 2. g3 {[%clk 0:02:59.4]}
2... Nf6 {[%clk 0:02:59.1]} 3. Bg2 {[%clk 0:02:59.7]} 3... d5 {[%clk 0:02:58.4]}
4. cxd5 {[%clk 0:02:59.8]} 4... Nxd5 {[%clk 0:02:58.3]} 5. Nf3 {[%clk
0:02:58.9]} 5... Nc6 {[%clk 0:02:58.3]} 6. Nc3 {[%clk 0:02:59]} 6... Nb6 {[%clk
0:02:57.9]} 7. O-O {[%clk 0:02:58.8]} 7... Be7 {[%clk 0:02:58.2]} 8. d3 {[%clk
0:02:58.9]} 8... O-O {[%clk 0:02:58.1]} 9. Be3 {[%clk 0:02:57.6]} 9... Re8
{[%clk 0:02:57.1]} 10. a3 {[%clk 0:02:57.3]} 10... Bf8 {[%clk 0:02:56.5]} 11. b4
{[%clk 0:02:57]} 11... a5 {[%clk 0:02:53.6]} 12. b5 {[%clk 0:02:44.9]} 12... Nd4
{[%clk 0:02:53.7]} 13. a4 {[%clk 0:02:38.7]} 13... Bg4 {[%clk 0:02:43.7]} 14.
Ne4 {[%clk 0:02:34.9]} 14... Bxf3 {[%clk 0:02:31.8]} 15. exf3 {[%clk 0:02:34.1]}
15... Qd7 {[%clk 0:02:28.2]} 16. f4 {[%clk 0:02:31.8]} 16... exf4 {[%clk
0:02:26.4]} 17. Bxf4 {[%clk 0:02:27]} 17... Nd5 {[%clk 0:02:23.3]} 18. Bd2
{[%clk 0:02:24.1]} 18... c6 {[%clk 0:02:09.4]} 19. bxc6 {[%clk 0:02:19.9]} 19...
Nxc6 {[%clk 0:02:10.3]} 20. Re1 {[%clk 0:02:16.8]} 20... Rad8 {[%clk 0:02:03.1]}
21. Qh5 {[%clk 0:02:03.9]} 21... Ndb4 {[%clk 0:01:27.8]} 22. Bh3 {[%clk
0:01:48.2]} 22... Qd5 {[%clk 0:01:25.2]} 23. Bf5 {[%clk 0:01:43.8]} 23... h6
{[%clk 0:01:21.3]} 24. Bxh6 {[%clk 0:01:15.9]} 24... Nd4 {[%clk 0:01:13.5]} 25.
Nf6+ {[%clk 0:00:54.5]} 25... gxf6 {[%clk 0:01:09]} 26. Qg4+ {[%clk 0:00:36.3]}
26... Kh8 {[%clk 0:01:08.9]} 27. Be4 {[%clk 0:00:27.8]} 27... f5 {[%clk
0:00:53.2]} 28. Qh4 {[%clk 0:00:14.5]} 28... Rxe4 {[%clk 0:00:42.3]} 29. dxe4
{[%clk 0:00:08.3]} 29... Nf3+ {[%clk 0:00:40.6]} 30. Kh1 {[%clk 0:00:07.5]}
30... Nxh4 {[%clk 0:00:39]} 31. exd5 {[%clk 0:00:08]} 31... Bxh6 {[%clk
0:00:38.2]} 32. gxh4 {[%clk 0:00:08.1]} 32... Rxd5 {[%clk 0:00:30.8]} 33. Rad1
{[%clk 0:00:02.8]} 33... Nd3 {[%clk 0:00:27.2]} 34. Re8+ {[%clk 0:00:01.9]}
34... Kg7 {[%clk 0:00:27.1]} 35. Kg1 {[%clk 0:00:02.5]} 35... Bf4 {[%clk
0:00:21.2]} 36. Rb1 {[%clk 0:00:02.8]} 36... Rd7 {[%clk 0:00:20]} 37. Rb5 {[%clk
0:00:02.8]} 37... Bh6 {[%clk 0:00:14.3]} 38. Rxa5 {[%clk 0:00:03]} 38... Nf4
{[%clk 0:00:14.5]} 39. f3 {[%clk 0:00:02]} 39... Ne6 {[%clk 0:00:13.8]} 0-1

[Event "*** Titled Tuesday Blitz"]
[Site "Chess.com"]
[Date "2020.04.14"]
[Round "8"]
[White "BakaPG"]
[Black "GamayevOleg"]
[Result "1-0"]
[WhiteElo "2719"]
[BlackElo "2521"]
[TimeControl "180+1"]
[EndTime "11:29:51 PDT"]
[Termination "BakaPG won on time"]

1. e4 {[%clk 0:03:00.9]} 1... d6 {[%clk 0:03:00.1]} 2. d4 {[%clk 0:02:59.8]}
2... Nf6 {[%clk 0:03:00.5]} 3. Nc3 {[%clk 0:02:59.5]} 3... e5 {[%clk 0:03:00.9]}
4. Nge2 {[%clk 0:02:58.3]} 4... exd4 {[%clk 0:03:00.7]} 5. Nxd4 {[%clk
0:02:57.8]} 5... Be7 {[%clk 0:03:00.4]} 6. f3 {[%clk 0:02:56.2]} 6... O-O {[%clk
0:02:59.7]} 7. Be3 {[%clk 0:02:56.1]} 7... c6 {[%clk 0:03:00.1]} 8. Qd2 {[%clk
0:02:53.1]} 8... b5 {[%clk 0:02:50.6]} 9. O-O-O {[%clk 0:02:51.8]} 9... b4
{[%clk 0:02:48.6]} 10. Nce2 {[%clk 0:02:50.2]} 10... c5 {[%clk 0:02:48.8]} 11.
Nf5 {[%clk 0:02:45.2]} 11... Bxf5 {[%clk 0:02:48.6]} 12. exf5 {[%clk 0:02:44.8]}
12... d5 {[%clk 0:02:44.3]} 13. Kb1 {[%clk 0:02:42.8]} 13... d4 {[%clk
0:02:42.9]} 14. Bg5 {[%clk 0:02:38.7]} 14... Re8 {[%clk 0:02:41.2]} 15. Ng3
{[%clk 0:02:37.9]} 15... Nd5 {[%clk 0:02:39.5]} 16. Bxe7 {[%clk 0:02:34.8]}
16... Qxe7 {[%clk 0:02:21.4]} 17. Bb5 {[%clk 0:02:30.5]} 17... Nd7 {[%clk
0:02:00.3]} 18. Ne4 {[%clk 0:02:26.3]} 18... Rec8 {[%clk 0:01:42.6]} 19. Rhe1
{[%clk 0:02:11.6]} 19... N7f6 {[%clk 0:01:22.1]} 20. Ba6 {[%clk 0:01:32.4]}
20... Rcb8 {[%clk 0:01:05.8]} 21. Qd3 {[%clk 0:01:02.4]} 21... Ne3 {[%clk
0:00:53.1]} 22. Rd2 {[%clk 0:01:01.5]} 22... Rb6 {[%clk 0:00:42.6]} 23. Bc4
{[%clk 0:00:53.3]} 23... h6 {[%clk 0:00:36.2]} 24. g4 {[%clk 0:00:51]} 24...
Nxe4 {[%clk 0:00:19.6]} 25. fxe4 {[%clk 0:00:43.7]} 25... Re8 {[%clk 0:00:18.9]}
26. Bb5 {[%clk 0:00:39.1]} 26... Reb8 {[%clk 0:00:14.7]} 27. Bc4 {[%clk
0:00:38]} 27... Re8 {[%clk 0:00:14.4]} 28. Bb5 {[%clk 0:00:35.1]} 28... Reb8
{[%clk 0:00:14.1]} 29. Ba4 {[%clk 0:00:35.2]} 29... Qe5 {[%clk 0:00:08.8]} 30.
Bb3 {[%clk 0:00:31.4]} 30... Rc8 {[%clk 0:00:07]} 31. Rxe3 {[%clk 0:00:26.7]}
31... dxe3 {[%clk 0:00:05.9]} 32. Qxe3 {[%clk 0:00:26.8]} 32... Re8 {[%clk
0:00:05.5]} 33. Bd5 {[%clk 0:00:25.7]} 33... Rd6 {[%clk 0:00:04.9]} 34. Qg1
{[%clk 0:00:20.1]} 34... Kh7 {[%clk 0:00:01.2]} 35. b3 {[%clk 0:00:19.2]} 35...
f6 {[%clk 0:00:01.5]} 36. Qxc5 {[%clk 0:00:18.6]} 36... Red8 {[%clk 0:00:01.3]}
37. Qxb4 {[%clk 0:00:18]} 1-0

[Event "*** Titled Tuesday Blitz"]
[Site "Chess.com"]
[Date "2020.04.14"]
[Round "8"]
[White "LiemLe"]
[Black "BlueWizzard"]
[Result "1-0"]
[WhiteElo "3003"]
[BlackElo "2773"]
[TimeControl "180+1"]
[EndTime "11:29:52 PDT"]
[Termination "LiemLe won on time"]

1. e4 {[%clk 0:03:00.9]} 1... c6 {[%clk 0:03:00.9]} 2. d4 {[%clk 0:02:59.8]}
2... g6 {[%clk 0:03:01.6]} 3. Nc3 {[%clk 0:02:58.8]} 3... d5 {[%clk 0:03:01.8]}
4. e5 {[%clk 0:02:59]} 4... Nh6 {[%clk 0:03:00.1]} 5. f4 {[%clk 0:02:58.5]} 5...
Bg7 {[%clk 0:02:58.7]} 6. Nf3 {[%clk 0:02:57.3]} 6... f6 {[%clk 0:02:59]} 7. Bd3
{[%clk 0:02:47.1]} 7... Bg4 {[%clk 0:02:56.4]} 8. O-O {[%clk 0:02:36.7]} 8...
Qb6 {[%clk 0:02:56.2]} 9. Kh1 {[%clk 0:02:16.2]} 9... fxe5 {[%clk 0:02:17.3]}
10. fxe5 {[%clk 0:02:07.2]} 10... O-O {[%clk 0:02:11.6]} 11. Na4 {[%clk
0:01:59.9]} 11... Qc7 {[%clk 0:01:48.3]} 12. Bg5 {[%clk 0:01:52.9]} 12... Nf5
{[%clk 0:01:41.3]} 13. c3 {[%clk 0:01:42.5]} 13... Nd7 {[%clk 0:01:33]} 14. b4
{[%clk 0:01:25.7]} 14... a5 {[%clk 0:01:14.3]} 15. Nc5 {[%clk 0:01:25]} 15...
Nxc5 {[%clk 0:01:09.5]} 16. bxc5 {[%clk 0:01:25.9]} 16... e6 {[%clk 0:00:55.1]}
17. Rb1 {[%clk 0:01:12]} 17... Rf7 {[%clk 0:00:54.9]} 18. Qc2 {[%clk 0:00:57.9]}
18... Raf8 {[%clk 0:00:49]} 19. Kg1 {[%clk 0:00:29.2]} 19... h6 {[%clk
0:00:46.9]} 20. Bd2 {[%clk 0:00:29.1]} 20... Qe7 {[%clk 0:00:37.1]} 21. h3
{[%clk 0:00:27.1]} 21... Bxf3 {[%clk 0:00:34.9]} 22. Rxf3 {[%clk 0:00:28]} 22...
h5 {[%clk 0:00:22.8]} 23. Rbf1 {[%clk 0:00:26.8]} 23... Qh4 {[%clk 0:00:23]} 24.
Be1 {[%clk 0:00:18]} 24... Qg5 {[%clk 0:00:22.9]} 25. Qf2 {[%clk 0:00:17.1]}
25... Nh6 {[%clk 0:00:19.3]} 26. Bd2 {[%clk 0:00:15.5]} 26... Rxf3 {[%clk
0:00:15.6]} 27. Bxg5 {[%clk 0:00:16.1]} 27... Rxf2 {[%clk 0:00:16]} 28. Rxf2
{[%clk 0:00:17]} 28... Nf5 {[%clk 0:00:16.4]} 29. Rb2 {[%clk 0:00:15.7]} 29...
Rf7 {[%clk 0:00:16.5]} 30. Bd8 {[%clk 0:00:15.1]} 30... Bh6 {[%clk 0:00:16.4]}
31. g4 {[%clk 0:00:12.8]} 31... hxg4 {[%clk 0:00:14]} 32. hxg4 {[%clk
0:00:13.7]} 32... Be3+ {[%clk 0:00:14.4]} 33. Kg2 {[%clk 0:00:14.2]} 33... Nh6
{[%clk 0:00:13.6]} 34. Bxg6 {[%clk 0:00:13]} 34... Rg7 {[%clk 0:00:13.4]} 35.
Bh5 {[%clk 0:00:12.3]} 35... Bc1 {[%clk 0:00:13]} 36. Rc2 {[%clk 0:00:11.6]}
36... Bg5 {[%clk 0:00:12.2]} 37. Bf6 {[%clk 0:00:10.9]} 37... Bxf6 {[%clk
0:00:11.5]} 38. exf6 {[%clk 0:00:11.8]} 38... Rg5 {[%clk 0:00:12]} 39. Kf3
{[%clk 0:00:11.6]} 39... Kf8 {[%clk 0:00:11.1]} 40. Kf4 {[%clk 0:00:11.8]} 40...
Rg8 {[%clk 0:00:11.4]} 41. Rb2 {[%clk 0:00:11.9]} 1-0